[Event "Slovakian-ch Youth 2022"]
[Site "Lubovna"]
[Date "2022.05.26"]
[Round "7.2"]
[White "Mazak, Ryan"]
[Black "Sotnik, Simon"]
[Result "1-0"]
[ECO "B21"]
[WhiteElo "1575"]
[BlackElo "1038"]
[Annotator "NA RC COMBH"]
[PlyCount "73"]
[EventDate "2022.05.22"]
[EventCountry "SVK"]
[SourceTitle "playchess.com"]
[Source "ChessBase"]
[SourceQuality "1"]
[TimeControl "40/5400+30:1800+30"]

1. e4 {[%emt 0:00:30]} c5 {[%emt 0:00:30]} 2. d4 {[%emt 0:00:30]} cxd4 {[%emt 0:01:55]} 3. c3 {[%emt 0:00:11]} g6 {[%emt 0:01:53]} 4. cxd4 {[%emt 0:01:01]} Bg7 {[%emt 0:02:58]} 5. Nf3 {[%emt 0:01:28]} d6 {[%emt 0:03:24]} 6. Nc3 {[%emt 0:01:22]} Bg4 {[%emt 0:01:40]} 7. Be2 {[%emt 0:01:03]} Bxf3 {[%emt 0:01:12]} 8. Bxf3 {[%emt 0:00:18]} Nd7 {[%emt 0:01:28]} 9. O-O {[%emt 0:01:14]} Rb8 {[%emt 0:02:06]} 10. Be3 {[%emt 0:01:08]} b6 {[%emt 0:01:29]} 11. Rc1 {[%emt 0:01:46]} Ngf6 {[%emt 0:00:27]} 12. Qb3 {[%emt 0:03:23]} O-O {[%emt 0:01:52]} 13. Rfd1 {[%emt 0:01:17]} e5 {[%emt 0:02:20]} 14. Nb5 {[%emt 0:07:34]} a6 {[%emt 0:03:30]} 15. Nxd6 {[%emt 0:01:08]} exd4 {[%emt 0:02:52]} 16. Bxd4 {[%emt 0:01:31]} Bh6 {[%emt 0:01:02]} 17. Be3 {[%emt 0:02:55]} Bxe3 {[%emt 0:00:34]} 18. Qxe3 {[%emt 0:00:14]} Ne5 {[%emt 0:02:29]} 19. Nf5 {[%emt 0:06:30]} Nxf3+ {[%emt 0:01:02]} 20. Qxf3 {[%emt 0:00:24]} Qe8 {[%emt 0:00:53]} 21. Nd6 {[%emt 0:01:11]} Qe6 {[%emt 0:00:58]} 22. h4 {[%emt 0:06:44]} Rbd8 {[%emt 0:00:35]} 23. Qf4 {[%emt 0:02:36]} Rd7 {[%emt 0:01:59]} 24. e5 {[%emt 0:01:09]} Nh5 {[%emt 0:01:27]} 25. Qe3 {[%emt 0:05:03]} b5 {[%emt 0:01:39]} 26. b3 {[%emt 0:08:44]} f6 {[%emt 0:01:53]} 27. f4 {[%emt 0:08:12]} fxe5 {[%emt 0:01:07]} 28. Qxe5 {[%emt 0:01:24]} Qxe5 {[%emt 0:00:39]} 29. fxe5 {[%emt 0:00:15]} Nf4 {[%emt 0:00:28]} 30. Rd2 {[%emt 0:00:49]} a5 {[%emt 0:01:58]} 31. Re1 {[%emt 0:00:52]} Ne6 {[%emt 0:01:20]} 32. Red1 {[%emt 0:01:16]} Rf4 {[%emt 0:01:13]} 33. Nxb5 {[%emt 0:01:45]} Rxd2 {[%emt 0:00:27]} 34. Rxd2 {[%emt 0:00:17]} Rxh4 {[%emt 0:00:11]} 35. Rd6 {[%emt 0:01:15]} Kf7 {[%emt 0:01:56]} 36. Ra6 {[%emt 0:01:12]} Re4 {[%emt 0:01:18]} 37. Nd6+ {[%emt 0:00:38]} 1-0

[Event "Slovakian-ch Youth 2022"]
[Site "Lubovna"]
[Date "2022.05.26"]
[Round "7.3"]
[White "Rucek, Kristian"]
[Black "Gyerpal, Adrian"]
[Result "1/2-1/2"]
[ECO "C10"]
[WhiteElo "2128"]
[BlackElo "2171"]
[Annotator "TA"]
[PlyCount "30"]
[EventDate "2022.05.22"]
[EventCountry "SVK"]
[SourceTitle "playchess.com"]
[Source "ChessBase"]
[SourceQuality "1"]
[TimeControl "40/5400+30:1800+30"]

{[%evp 24,30,31,26,34,34,77,69,89]} 1. d4 {[%emt 0:00:11]} d5 {[%emt 0:00:25]} 2. c4 {[%emt 0:00:08]} c6 {[%emt 0:00:10]} 3. Nc3 {[%emt 0:00:07]} Nf6 {[%emt 0:00:40]} 4. Nf3 {[%emt 0:00:06]} e6 {[%emt 0:00:13]} 5. Qd3 {[%emt 0:00:28]} Nbd7 {[%emt 0:04:06]} 6. e4 {[%emt 0:00:08]} dxe4 {[%emt 0:01:13]} 7. Nxe4 {[%emt 0:00:06]} Nxe4 {[%emt 0:01:11]} 8. Qxe4 {[%emt 0:00:05]} Nf6 {[%emt 0:00:23]} 9. Qd3 {[%emt 0:00:11]} Be7 {[%emt 0:04:02]} 10. g3 {[%emt 0:00:14]} O-O {[%emt 0:01:30]} 11. Bg2 {[%emt 0:00:04]} c5 {[%emt 0:02:15]} 12. O-O {[%emt 0:00:20]} cxd4 {[%emt 0:04:49]} 13. Qxd4 {[%emt 0:00:14]} Qxd4 {[%emt 0:03:44] C10: French with 3 Nc3: Unusual Black 3rd moves and 3...dxe4.} 14. Nxd4 {[%emt 0:00:01]} a6 {[%emt 0:00:27] [#]} 15. Bd2 $146 {[%emt 0:13:10] White is more active.} ({Predecessor:} 15. b3 Rd8 16. Bb2 e5 17. Rfe1 Bc5 18. Nf3 Ng4 19. Re2 e4 20. Rxe4 Nxf2 21. Re2 {½-½ (35) Elizarova,T (1669)-Matchenya,I (1730) St Petersburg 2012}) 15... Nd7 {[%emt 0:07:40]} 1/2-1/2

[Event "Slovakian-ch Youth 2022"]
[Site "Lubovna"]
[Date "2022.05.26"]
[Round "7.3"]
[White "Magda, Filip"]
[Black "Smetana, Peter"]
[Result "0-1"]
[ECO "E62"]
[WhiteElo "1624"]
[BlackElo "1740"]
[Annotator "NA RC COMBH"]
[PlyCount "68"]
[EventDate "2022.05.22"]
[EventCountry "SVK"]
[SourceTitle "playchess.com"]
[Source "ChessBase"]
[SourceQuality "1"]
[TimeControl "40/5400+30:1800+30"]

1. d4 Nf6 {[%emt 0:00:25]} 2. Nf3 {[%emt 0:00:49]} g6 {[%emt 0:01:57]} 3. c4 Bg7 4. g3 {[%emt 0:01:16]} O-O {[%emt 0:01:44]} 5. Bg2 {[%emt 0:00:10]} d6 {[%emt 0:01:13]} 6. O-O {[%emt 0:00:49]} Nc6 {[%emt 0:01:40]} 7. Nc3 {[%emt 0:02:08]} e5 {[%emt 0:04:46]} 8. dxe5 {[%emt 0:06:24]} dxe5 {[%emt 0:01:56]} 9. e4 {[%emt 0:02:19]} Be6 {[%emt 0:03:39]} 10. b3 {[%emt 0:02:13]} a6 {[%emt 0:19:42]} 11. Bb2 {[%emt 0:07:05]} Nd7 {[%emt 0:02:34]} 12. Nd5 {[%emt 0:07:39]} Ne7 {[%emt 0:03:40]} 13. Ng5 {[%emt 0:05:55]} Bxd5 {[%emt 0:05:38]} 14. exd5 {[%emt 0:04:14]} Nf5 {[%emt 0:04:03]} 15. Ne4 {[%emt 0:06:55]} Nd6 {[%emt 0:01:42]} 16. Nxd6 {[%emt 0:01:25]} cxd6 {[%emt 0:00:13]} 17. Qd2 {[%emt 0:01:09]} f5 {[%emt 0:07:39]} 18. Ba3 {[%emt 0:06:02]} Rf6 {[%emt 0:03:15]} 19. Rad1 {[%emt 0:05:02]} Rc8 {[%emt 0:02:00]} 20. Bb2 {[%emt 0:03:47]} b5 {[%emt 0:05:02]} 21. cxb5 {[%emt 0:05:28]} axb5 {[%emt 0:00:38]} 22. b4 {[%emt 0:00:18]} Nb6 {[%emt 0:01:37]} 23. Ba1 {[%emt 0:09:39]} Rf7 {[%emt 0:01:45]} 24. Rc1 {[%emt 0:01:06]} Nc4 {[%emt 0:01:12]} 25. Qe2 {[%emt 0:00:52]} Ra7 {[%emt 0:00:39]} 26. Rc2 {[%emt 0:02:50]} Rca8 {[%emt 0:01:07]} 27. Rfc1 {[%emt 0:03:40]} Ra4 {[%emt 0:00:51]} 28. Bc3 {[%emt 0:01:16]} e4 {[%emt 0:01:06]} 29. Bxg7 {[%emt 0:03:24]} Kxg7 {[%emt 0:00:14]} 30. Rxc4 {[%emt 0:02:28]} bxc4 {[%emt 0:00:21]} 31. Qxc4 {[%emt 0:00:05]} Rxa2 {[%emt 0:00:45]} 32. Qc7+ {[%emt 0:00:21]} Qxc7 {[%emt 0:00:30]} 33. Rxc7+ {[%emt 0:00:05]} Kf6 {[%emt 0:05:15]} 34. b5 {[%emt 0:01:34]} R2a7 0-1

[Event "Slovakian-ch Youth 2022"]
[Site "Lubovna"]
[Date "2022.05.26"]
[Round "7.4"]
[White "Bochnicka, Vladimir"]
[Black "Chlpek, Daniel"]
[Result "0-1"]
[ECO "B56"]
[WhiteElo "2267"]
[BlackElo "2030"]
[Annotator "TA"]
[PlyCount "122"]
[EventDate "2022.05.22"]
[EventCountry "SVK"]
[SourceTitle "playchess.com"]
[Source "ChessBase"]
[SourceQuality "1"]
[TimeControl "40/5400+30:1800+30"]

{[%evp 15,122,31,77,-25,-25,-19,-20,-27,12,10,8,-15,0,0,0,-12,35,-8,0,0,0,-26,-16,-18,-12,-23,0,0,0,-185,-183,-177,-176,-180,-175,-172,-181,-160,-111,-185,-103,-183,-156,-214,-218,-245,-208,-264,-268,-293,-285,-293,-291,-265,-262,-261,0,-273,-262,-280,-281,-287,-296,-324,-321,-387,-394,-427,-425,-547,-399,-395,-386,-598,-560,-650,-252,-245,-245,-245,-245,-245,-245,-310,-225,-412,-412,-370,-245,-2163,-2121,-1884,-1953,-1855,-1751,-1686,-1372,-1725,-706,-578,-321,-564,-261,-1460,-269,-5121,-9055,-29987,-29974]} 1. e4 {[%emt 0:00:10]} c5 {[%emt 0:00:20]} 2. Nf3 {[%emt 0:00:08]} Nc6 {[%emt 0:00:13]} 3. d4 {[%emt 0:00:22]} cxd4 {[%emt 0:00:09]} 4. Nxd4 {[%emt 0:00:23]} Nf6 {[%emt 0:00:07]} 5. Nc3 {[%emt 0:00:17]} d6 {[%emt 0:00:05]} 6. Be3 {[%emt 0:01:04]} Ng4 {[%emt 0:00:08]} 7. Bg5 {[%emt 0:06:05]} Qb6 {[%emt 0:00:06]} 8. Bb5 {[%emt 0:10:12]} e5 {[%emt 0:00:05] [#]} (8... Bd7 $14 {should be considered.} 9. O-O h6) 9. h3 $146 {[%emt 0:17:16] B56: Classical Sicilian: Unusual Lines.} ({Don't go for} 9. Bxc6+ $2 bxc6 10. Nde2 Qxf2+ 11. Kd2 h6 $19) ({Only move:} 9. Nd5 $1 $16 Qxd4 10. Qxd4 exd4 11. Nc7+ Kd7 12. Nxa8) ({Predecessor:} 9. Nd5 Qxd4 10. Qxd4 exd4 11. Nc7+ Kd7 12. Nxa8 b6 13. h3 Nf6 14. f3 Bb7 15. Nxb6+ axb6 16. O-O-O Be7 17. Bxc6+ Kxc6 18. Rxd4 {½-½ (61) Skuhala,B (2077)-Baches Garcia,G (2329) Chess.com INT 2021}) 9... Qxd4 $11 {[%emt 0:14:19][%csl Gg4][%cal Rd4f2]} (9... exd4 $2 10. Nd5 $1 Qa5+ 11. b4 Qxb5 12. Nc7+ Kd7 13. Nxb5 $18) 10. hxg4 {[%emt 0:01:20]} Qxd1+ {[%emt 0:05:14]} 11. Rxd1 {[%emt 0:01:23] The position is equal.} f6 {[%emt 0:08:21]} 12. Be3 {[%emt 0:00:37]} Bxg4 {[%emt 0:03:18]} 13. Rd3 {[%emt 0:03:21]} O-O-O {[%emt 0:07:25]} 14. Nd5 {[%emt 0:16:57]} Kb8 {[%emt 0:18:42]} 15. Ra3 {[%emt 0:08:18]} Nd4 {[%emt 0:08:05]} (15... Rc8 $11) 16. Bd3 {[%emt 0:00:57][%mdl 1024] White has compensation.} (16. Bxd4 $5 exd4 17. Ra4 $14) 16... Be6 {[%emt 0:11:13]} 17. c3 {[%emt 0:01:44]} Nc6 {[%emt 0:00:04]} 18. b4 {[%emt 0:04:52]} b6 $1 {[%emt 0:03:49]} 19. O-O {[%emt 0:05:27]} Ne7 {[%emt 0:02:14]} 20. c4 {[%emt 0:01:20]} Nxd5 {[%emt 0:00:38]} 21. exd5 {[%emt 0:00:30]} Bc8 {[%emt 0:00:33]} 22. c5 $2 {[%emt 0:02:44]} (22. Rb3 $11) 22... dxc5 $19 {[%emt 0:01:51]} 23. bxc5 {[%emt 0:00:06]} Rxd5 {[%emt 0:00:44]} 24. Rb3 {[%emt 0:00:34]} Rxc5 {[%emt 0:00:18]} 25. Bxc5 {[%emt 0:00:20]} Bxc5 {[%emt 0:00:04]} 26. Rc1 {[%emt 0:02:35] aiming for Rxc5.} Be6 {[%emt 0:00:38]} (26... Bd4 $142 27. a4 Bb7) 27. Rb5 {[%emt 0:00:52]} (27. Bc4 $17 {keeps fighting.} Bc8 28. Be2) 27... Kc7 {[%emt 0:01:30]} (27... Rc8 $19 {[%cal Oc5f2] Hoping for ...Bxf2+!} 28. Rc2 g6) 28. Rc2 {[%emt 0:01:48]} (28. Rbxc5+ $17 bxc5 29. Rxc5+ Kb6 30. Rb5+ Kc6 31. a4) 28... g6 {[%emt 0:01:07]} 29. a4 {[%emt 0:00:36]} (29. Rbxc5+ $17 bxc5 30. Rxc5+ Kd6 31. Ra5) 29... Rd8 {[%emt 0:00:23]} 30. Be2 {[%emt 0:00:54]} Bf5 {[%emt 0:00:24]} 31. Ra2 {[%emt 0:00:27]} a5 {[%emt 0:01:12]} 32. Kf1 {[%emt 0:01:14]} Rd4 {[%emt 0:00:08]} 33. Rbb2 {[%emt 0:01:00]} Be6 {[%emt 0:02:18]} 34. Ra1 {[%emt 0:00:07]} Rf4 {[%emt 0:01:07]} 35. Bb5 {[%emt 0:00:11]} Rd4 $2 {[%emt 0:02:55] Prevents Rd1.} (35... h5 $19 {And now ...h4 would win.} 36. Rc1 g5) 36. Rc1 $2 {[%emt 0:01:11][%mdl 8192]} (36. Be2 $1 $11 Kb7 37. Kg1) 36... Kd8 {[%emt 0:00:54]} 37. Rc3 {[%emt 0:01:22]} Ke7 {[%emt 0:01:18]} 38. Ke2 {[%emt 0:01:01]} f5 {[%emt 0:00:37]} 39. Rh3 {[%emt 0:00:23]} h5 {[%emt 0:00:34]} 40. Rc2 {[%emt 0:02:41]} Bd5 {[%emt 0:02:06]} 41. Rg3 {[%emt 0:30:59]} Kf7 {[%emt 0:05:58]} 42. Re3 {[%emt 0:00:00]} Kf6 {[%emt 0:00:30]} 43. f3 {[%emt 0:00:00]} e4 {[%emt 0:01:19] Against Rd3} 44. Rec3 {[%emt 0:00:00]} (44. fxe4 {was called for.} Bxe4 45. Rxe4 Rxe4+ 46. Kd1) 44... h4 {[%emt 0:01:44]} 45. Rc1 {[%emt 0:00:00]} h3 $2 {[%emt 0:01:10]} (45... exf3+ 46. gxf3 Ke5) 46. gxh3 {[%emt 0:00:00]} exf3+ {[%emt 0:00:20]} 47. Rxf3 {[%emt 0:00:00]} Bxf3+ {[%emt 0:01:51]} 48. Kxf3 {[%emt 0:00:00][%mdl 4096] Endgame KRB-KRB} g5 {[%emt 0:00:18]} 49. Re1 {[%emt 0:00:00]} Rb4 {[%emt 0:00:39]} 50. Re8 $2 {[%emt 0:00:00]} (50. Rd1 {is a better defense.}) 50... Rb3+ {[%emt 0:00:20]} 51. Kg2 {[%emt 0:00:00]} Bd6 {[%emt 0:01:18] White must now prevent ...Rg3+.} 52. Re6+ $2 {[%emt 0:00:00]} (52. Bc4 Rg3+ 53. Kf2) 52... Kxe6 {[%emt 0:00:17]} 53. Bc4+ {[%emt 0:00:00]} Ke5 {[%emt 0:00:12][%cal Ob3g3]} 54. Bxb3 {[%emt 0:00:00] KB-KB} b5 {[%emt 0:00:09]} 55. axb5 {[%emt 0:00:00]} Kd4 {[%emt 0:00:12]} 56. b6 {[%emt 0:00:00]} g4 {[%emt 0:03:12]} (56... Kc3 $142 57. Be6 f4) 57. h4 {[%emt 0:00:00] [#]} Ke5 $1 {[%emt 0:01:49] Threatens to win with ...f4.} 58. h5 $2 {[%emt 0:00:00]} (58. Bd1 {was the only chance.} Kf6 59. b7) 58... Kf6 {[%emt 0:00:20] Strongly threatening ...Kg5.} 59. b7 $2 {[%emt 0:00:00]} (59. h6 f4 60. h7) 59... f4 $2 {[%emt 0:00:43]} (59... Kg5 60. Be6 a4) 60. Ba4 $2 {[%emt 0:00:00]} (60. h6 Kg6 61. h7 Kxh7 62. Be6) 60... Kg5 {[%emt 0:00:28] ( -> ...f3+)} 61. Be8 {[%emt 0:00:00]} Bb8 {[%emt 0:00:48] Weighted Error Value: White=1.09/Black=0.49} 0-1

[Event "Slovakian-ch Youth 2022"]
[Site "Lubovna"]
[Date "2022.05.26"]
[Round "7.4"]
[White "Toth, Mihaly"]
[Black "Muller, Tomas"]
[Result "0-1"]
[ECO "C00"]
[WhiteElo "1909"]
[BlackElo "1240"]
[Annotator "TA"]
[PlyCount "62"]
[EventDate "2022.05.22"]
[EventCountry "SVK"]
[SourceTitle "playchess.com"]
[Source "ChessBase"]
[SourceQuality "1"]
[TimeControl "40/5400+30:1800+30"]

{[%evp 9,62,-43,-50,-50,39,4,50,9,15,29,43,27,77,-1,18,13,62,23,70,16,263,95,87,41,214,-28,450,-191,-195,-524,-524,-514,-511,-554,-543,-609,-333,-487,-384,-381,-381,-362,-320,-924,-906,-959,-952,-1018,-998,-1002,-999,-1615,-1616,-1714,-1709]} 1. e4 e6 2. d3 d5 3. Nd2 Nf6 4. b3 Nc6 {[#]} 5. Be2 $146 ({Predecessor:} 5. Bb2 Bc5 6. Ngf3 d4 7. Be2 e5 8. h3 Qe7 9. a4 a5 10. Nf1 Bd7 11. Ng3 {0-1 (34) Broser,C (1651)-Dumancic,P (2069) Haid 2018}) 5... Bb4 6. Bb2 {C00: French: Unusual White 2nd moves.} O-O (6... dxe4 $1 $15 7. a3 Bxd2+ 8. Qxd2 e5) 7. c3 Bc5 (7... Bd6 $11) 8. Ngf3 {White is slightly better.} dxe4 9. dxe4 Ng4 10. O-O Qf6 (10... a5 $11) 11. Rb1 (11. Qc2 $16) 11... Qh6 12. h3 Nf6 (12... Nge5 $11) 13. e5 $14 Nd7 (13... Nd5 $11) 14. Ne4 (14. Nc4 $14) 14... Bb6 $2 (14... Be7 $1 $11) 15. c4 $2 (15. Bc1 $1 $18 {[%cal Rc1h6] is the precise move to win.} Qh5 16. Neg5) 15... Rd8 16. Qc2 (16. Bd3 $16 {Bc1 is the strong threat.} Nc5 17. Nxc5 Bxc5 18. b4) 16... Qg6 $2 {[#]} (16... Nb4 $14 17. Qc1 Qxc1 18. Bxc1 (18. Rbxc1 Nxa2 19. Ra1 Nb4 $14) 18... Nxa2) 17. a3 $2 (17. Rbd1 $1 $18) 17... a6 $2 {[%mdl 8192]} (17... Nc5 $1 $11 18. Nfg5 Nxe4 19. Nxe4 Bd4) 18. Bc1 $4 {[%mdl 8192] [#]} (18. Bd3 $18) 18... Nc5 $1 $19 {[%cal Bd7c5,Bc5e4,Be4d2][%mdl 32]} (18... Ncxe5 $2 19. Nh4 $18) 19. Nh4 $2 (19. Nfg5 {nothing else works.}) 19... Qxe4 20. Qxe4 Nxe4 21. b4 Nxe5 22. Bb2 Nd2 23. Rfd1 (23. Bxe5 {only move.} Nxf1 24. Bxf1) 23... c6 24. Bxe5 Nxb1 25. Rxb1 Rd2 26. Bf3 (26. Kf1) 26... Bxf2+ {Black is clearly winning.} 27. Kf1 Bxh4 28. Bc3 Rf2+ 29. Kg1 Rc2 30. Rd1 Rxc3 31. g3 Be7 {Weighted Error Value: White=1.31/Black=0.88} 0-1

[Event "Slovakian-ch Youth 2022"]
[Site "Lubovna"]
[Date "2022.05.26"]
[Round "7.4"]
[White "Benci, Jozef"]
[Black "Gollner, Martin"]
[Result "0-1"]
[ECO "A05"]
[WhiteElo "1873"]
[BlackElo "1585"]
[Annotator "NA RC COMBH"]
[PlyCount "90"]
[EventDate "2022.05.22"]
[EventCountry "SVK"]
[SourceTitle "playchess.com"]
[Source "ChessBase"]
[SourceQuality "1"]
[TimeControl "40/5400+30:1800+30"]

1. Nf3 Nf6 {[%emt 0:00:19]} 2. g3 {[%emt 0:00:12]} g6 {[%emt 0:00:14]} 3. Bg2 {[%emt 0:00:29]} Bg7 {[%emt 0:10:03]} 4. O-O {[%emt 0:01:31]} O-O {[%emt 0:01:57]} 5. d4 {[%emt 0:04:05]} c5 {[%emt 0:01:53]} 6. c3 {[%emt 0:04:50]} cxd4 {[%emt 0:04:09]} 7. Nxd4 {[%emt 0:10:35]} Nc6 {[%emt 0:05:12]} 8. Nb3 {[%emt 0:07:47]} Qc7 {[%emt 0:11:55]} 9. N1d2 {[%emt 0:05:00]} d5 {[%emt 0:05:28]} 10. Nf3 {[%emt 0:13:18]} e6 {[%emt 0:04:23]} 11. Bg5 {[%emt 0:08:23]} b6 {[%emt 0:04:53]} 12. Qc1 {[%emt 0:03:33]} Ba6 {[%emt 0:07:18]} 13. Re1 {[%emt 0:04:30]} Ne4 {[%emt 0:06:27]} 14. Bh6 {[%emt 0:03:26]} Nc5 {[%emt 0:00:28]} 15. Bxg7 {[%emt 0:02:33]} Kxg7 {[%emt 0:06:22]} 16. Nbd4 {[%emt 0:09:20]} Rac8 {[%emt 0:06:28]} 17. h4 {[%emt 0:12:25]} h5 18. Bh3 {[%emt 0:00:35]} Nxd4 {[%emt 0:03:52]} 19. Nxd4 {[%emt 0:02:11]} Qe5 {[%emt 0:03:56]} 20. Nf3 {[%emt 0:00:50]} Qf6 21. Qg5 Ne4 {[%emt 0:03:16]} 22. Qxf6+ {[%emt 0:01:31]} Kxf6 {[%emt 0:00:06]} 23. Rad1 {[%emt 0:01:29]} b5 {[%emt 0:04:57]} 24. Nd2 {[%emt 0:01:07]} Nd6 {[%emt 0:02:29]} 25. Nf3 b4 {[%emt 0:00:30]} 26. cxb4 {[%emt 0:01:26]} Rc2 {[%emt 0:00:20]} 27. Rd2 {[%emt 0:01:02]} Rfc8 {[%emt 0:00:54]} 28. e3 Ne4 {[%emt 0:00:00]} 29. Rxc2 {[%emt 0:01:31]} Rxc2 {[%emt 0:00:28]} 30. Nd4 {[%emt 0:01:16]} Rxb2 31. Nc6 {[%emt 0:00:28]} Nxf2 {[%emt 0:01:38]} 32. Bf1 Bb7 {[%emt 0:02:24]} 33. b5 {[%emt 0:01:00]} Ne4 {[%emt 0:01:05]} 34. Nxa7 {[%emt 0:00:33]} Rxa2 {[%emt 0:00:30]} 35. b6 {[%emt 0:00:19]} Rb2 {[%emt 0:01:18]} 36. Nb5 {[%emt 0:00:43]} Nxg3 {[%emt 0:00:58]} 37. Bd3 {[%emt 0:00:31]} Rb3 {[%emt 0:01:11]} 38. Nd6 Rxb6 {[%emt 0:00:00]} 39. Nxb7 {[%emt 0:00:47]} Rxb7 {[%emt 0:00:43]} 40. Kg2 Ne4 {[%emt 0:00:00]} 41. Bxe4 {[%emt 0:05:35]} dxe4 42. Rf1+ {[%emt 0:00:11]} Ke5 {[%emt 0:00:48]} 43. Rf4 {[%emt 0:00:13]} Rb2+ {[%emt 0:02:03]} 44. Kg3 {[%emt 0:00:26]} f5 {[%emt 0:00:06]} 45. Rf1 Re2 0-1

[Event "Slovakian-ch Youth 2022"]
[Site "Lubovna"]
[Date "2022.05.26"]
[Round "7.5"]
[White "Brnusak, Tomas"]
[Black "Priechodsky, Radovan"]
[Result "1-0"]
[ECO "A13"]
[WhiteElo "2212"]
[BlackElo "1965"]
[Annotator "TA"]
[PlyCount "87"]
[EventDate "2022.05.22"]
[EventCountry "SVK"]
[SourceTitle "playchess.com"]
[Source "ChessBase"]
[SourceQuality "1"]
[TimeControl "40/5400+30:1800+30"]

{[%evp 10,87,11,3,21,14,35,29,31,22,79,27,68,23,63,0,0,12,0,-39,0,-184,-129,-129,-139,-418,0,0,0,0,106,100,104,100,101,103,92,93,91,75,82,76,108,92,181,79,155,159,177,113,139,146,210,225,210,216,248,218,350,314,352,334,352,350,335,339,266,229,1064,885,3570,3047,4059,3385,5147,4935,29988,29989,29989,29990]} 1. c4 {[%emt 0:00:06]} e6 {[%emt 0:00:49]} 2. Nf3 {[%emt 0:00:17]} d5 {[%emt 0:00:15]} 3. e3 {[%emt 0:00:11]} Nf6 {[%emt 0:00:09]} 4. b3 {[%emt 0:00:05]} Be7 {[%emt 0:00:49]} 5. Bb2 {[%emt 0:00:15]} O-O {[%emt 0:00:11]} 6. d4 {[%emt 0:00:07]} c6 {[%emt 0:04:18] A13: English Opening: 1...e6.} 7. Bd3 {[%emt 0:01:06]} a6 {[%emt 0:00:37]} 8. O-O {[%emt 0:00:30]} Nbd7 {[%emt 0:00:18] White has an edge.} 9. Nbd2 {[%emt 0:01:17]} b5 {[%emt 0:12:55]} (9... b6 $11 {keeps the balance.}) 10. Ne5 {[%emt 0:02:00]} (10. c5 $16) 10... Bb7 {[%emt 0:03:46]} 11. f4 {[%emt 0:09:45] [#]} g6 $146 {[%emt 0:07:09]} ({Predecessor:} 11... bxc4 12. bxc4 c5 13. cxd5 Bxd5 14. e4 Bb7 15. Nxd7 Qxd7 16. Rf3 cxd4 17. Rh3 e5 18. fxe5 {1-0 (33) Collado Barbas,L (2024)-Seleznev,E (1772) Alicante 2021}) 12. g4 {[%emt 0:11:31]} (12. c5 $14) 12... Nxe5 {[%emt 0:13:07]} 13. fxe5 {[%emt 0:11:20]} Nd7 {[%emt 0:01:53]} 14. cxd5 {[%emt 0:02:30]} cxd5 {[%emt 0:00:49]} 15. e4 $2 {[%emt 0:02:26]} (15. Nf3 $11 {and White is okay.}) 15... Bg5 {[%emt 0:17:16]} (15... Qb6 $19 {Threatens to win with ...Nxe5.} 16. Kg2 Bg5 17. exd5 Bxd5+ 18. Be4 Qc6 19. Bxd5 Qxd5+ 20. Nf3 f5) 16. exd5 $17 {[%emt 0:02:22]} Be3+ {[%emt 0:03:17]} (16... Bxd5 $6 17. Qe2 $15) 17. Kg2 $2 {[%emt 0:12:11][%mdl 8192]} (17. Kh1 $17 {was the only defense.}) 17... Qg5 $2 {[%emt 0:10:50]} ({Don't blunder} 17... Qh4 $2 18. Kh1 Bxd2 19. Be4 $19) (17... f5 $19 18. Kf3 Bxd4 $1 {[%mdl 512]} 19. Bxd4 Nxe5+ $1 {[%mdl 512]} 20. Bxe5 Qxd5+ 21. Kf2 (21. Kg3 $2 Qxe5+ 22. Kh3 Rad8 $19) 21... Qxe5) 18. Ne4 $11 {[%emt 0:00:23]} Bxd5 {[%emt 0:02:34]} 19. Kg3 $1 {[%emt 0:00:40]} Bxe4 {[%emt 0:03:17]} (19... Qe7 $11 {remains equal.} 20. Qe1 Bh6) 20. Bxe4 $16 {[%emt 0:02:16]} Rad8 {[%emt 0:02:18][%cal Od7e5]} 21. h4 {[%emt 0:03:41]} Qe7 {[%emt 0:00:34][%cal Od7e5]} 22. Qe2 {[%emt 0:01:01]} Bh6 {[%emt 0:00:08][%cal Od7e5]} 23. g5 $36 {[%emt 0:00:07][%mdl 2048] White is on the roll.} Bg7 {[%emt 0:00:11]} 24. Rac1 {[%emt 0:00:19]} Rc8 {[%emt 0:07:15] Prevents Rc7.} 25. Qd2 {[%emt 0:10:24]} Nb8 {[%emt 0:05:12]} 26. Qa5 {[%emt 0:03:48]} h6 {[%emt 0:01:18]} (26... Qd7 $16 {is a better defense.}) 27. Kg4 {[%emt 0:09:36]} (27. Ba3 $18 {and White stays clearly on top.} Qd8 28. Qxd8 Rfxd8 29. Rxc8 Rxc8 30. Rc1) 27... Qd8 {[%emt 0:01:43]} (27... hxg5 $142 28. hxg5 (28. Ba3 Qd7 $11) 28... Qd7) 28. Qxd8 {[%emt 0:00:21] Dancing on a razor blade. 0x0.001a283658b1dp-1022s more active pieces. The black rooks are badly placed.} Rfxd8 {[%emt 0:00:06]} 29. Bb7 {[%emt 0:00:05]} (29. Rxc8 $18 h5+ 30. Kf4 Rxc8 31. a3) 29... Rxc1 {[%emt 0:00:27]} 30. Rxc1 {[%emt 0:00:04]} h5+ {[%emt 0:00:32]} (30... Bf8 $16 31. h5 gxh5+ 32. Kxh5 hxg5) 31. Kf4 $18 {[%emt 0:00:08]} Bf8 {[%emt 0:00:17] [#]} 32. a3 $1 {[%emt 0:03:12]} Rd7 {[%emt 0:01:33]} 33. Bc8 {[%emt 0:00:09]} Ra7 {[%emt 0:00:18]} (33... Rd5 {was necessary.} 34. b4 Be7) 34. Ke4 {[%emt 0:00:28]} Nd7 {[%emt 0:00:36]} 35. Rc6 {[%emt 0:00:34]} Nb8 {[%emt 0:00:38]} 36. Rb6 {[%emt 0:00:35]} Rc7 {[%emt 0:00:12]} 37. Rxb8 {[%emt 0:00:22]} Rc2 {[%emt 0:00:06]} 38. Bxa6 {[%emt 0:01:10][%cal Oa3a4] aiming for a4!} b4 $2 {[%emt 0:00:04] [#]} (38... Re2+ 39. Kd3 Rxb2) 39. axb4 $1 {[%emt 0:00:12][%cal Ba3b4,Bb4b5,Bb5b6,Bb6b7][%mdl 32] Black must now prevent b5!} Rxb2 {[%emt 0:00:10]} (39... Kg7 40. Ba3) 40. b5 {[%emt 0:00:05] And now b6 would win.} Rxb3 {[%emt 0:00:26]} 41. b6 {[%emt 0:30:04]} Kg7 {[%emt 0:30:41]} 42. b7 {[%emt 0:00:47]} f5+ {[%emt 0:00:00]} 43. exf6+ {[%emt 0:00:00]} Kf7 {[%emt 0:00:00]} 44. Rd8 {[%emt 0:00:00] What a bad dream for Black.  Weighted Error Value: White=0.34/Black=0.65} 1-0